[Event "Titled Tuesday Blitz November 22 Early 2022"]
[White "Fathy, Elameir"]
[Black "Salinas Herrera, Pablo"]
[WhiteFideId "10600396"]
[BlackFideId "3407128"]
[WhiteElo "2311"]
[BlackElo "2557"]
[Result "0-1"]
[Round "04"]
[TimeControl "180+1"]
[Date "2022.11.23"]
[WhiteClock "0:00:11"]
[BlackClock "0:00:35"]

1. d4 {[%clk 0:03:00]}  d5 {[%clk 0:02:59]} 2. c4 {[%clk 0:03:01]}  c6 {[%clk 0:02:59]} 3. Nf3 {[%clk 0:03:02]}  Nf6 {[%clk 0:02:59]} 4. g3 {[%clk 0:03:01]}  Bg4 {[%clk 0:02:58]} 5. Ne5 {[%clk 0:03:01]}  Bf5 {[%clk 0:02:57]} 6. cxd5 {[%clk 0:02:56]}  Qxd5 {[%clk 0:02:56]} 7. f3 {[%clk 0:02:50]}  Bxb1 {[%clk 0:02:54]} 8. Rxb1 {[%clk 0:02:36]}  Qxa2 {[%clk 0:02:54]} 9. Bd2 {[%clk 0:02:23]}  Nbd7 {[%clk 0:02:43]} 10. e4 {[%clk 0:02:02]}  Nxe5 {[%clk 0:02:33]} 11. dxe5 {[%clk 0:02:02]}  Nd7 {[%clk 0:02:33]} 12. f4 {[%clk 0:01:58]}  e6 {[%clk 0:02:27]} 13. Qc2 {[%clk 0:01:50]}  Bc5 {[%clk 0:02:20]} 14. Bc4 {[%clk 0:01:42]}  Qxb1+ {[%clk 0:01:21]} 15. Qxb1 {[%clk 0:01:43]}  O-O {[%clk 0:01:19]} 16. Ke2 {[%clk 0:01:43]}  Rfd8 {[%clk 0:01:16]} 17. b4 {[%clk 0:01:40]}  Bd4 {[%clk 0:01:13]} 18. Be3 {[%clk 0:01:36]}  Bxe3 {[%clk 0:01:13]} 19. Kxe3 {[%clk 0:01:37]}  b5 {[%clk 0:01:13]} 20. Bb3 {[%clk 0:01:33]}  a5 {[%clk 0:01:12]} 21. bxa5 {[%clk 0:01:31]}  Nc5 {[%clk 0:01:11]} 22. Rd1 {[%clk 0:01:24]}  Rdc8 {[%clk 0:01:10]} 23. Qa2 {[%clk 0:01:09]}  Nb7 {[%clk 0:01:04]} 24. a6 {[%clk 0:01:07]}  Nc5 {[%clk 0:01:04]} 25. a7 {[%clk 0:01:05]}  h6 {[%clk 0:00:57]} 26. Ra1 {[%clk 0:00:54]}  Rc7 {[%clk 0:00:53]} 27. Bc2 {[%clk 0:00:45]}  Rd7 {[%clk 0:00:47]} 28. Qa3 {[%clk 0:00:42]}  Na4 {[%clk 0:00:47]} 29. Bxa4 {[%clk 0:00:40]}  Rdxa7 {[%clk 0:00:48]} 30. Qc3 {[%clk 0:00:39]}  bxa4 {[%clk 0:00:47]} 31. Qxc6 {[%clk 0:00:38]}  a3 {[%clk 0:00:47]} 32. f5 {[%clk 0:00:38]}  Ra6 {[%clk 0:00:47]} 33. Qc5 {[%clk 0:00:33]}  a2 {[%clk 0:00:47]} 34. h4 {[%clk 0:00:25]}  Ra3+ {[%clk 0:00:45]} 35. Kf4 {[%clk 0:00:23]}  R3a6 {[%clk 0:00:41]} 36. h5 {[%clk 0:00:16]}  Ra5 {[%clk 0:00:39]} 37. Qc4 {[%clk 0:00:15]}  Ra4 {[%clk 0:00:39]} 38. Qb3 {[%clk 0:00:13]}  exf5 {[%clk 0:00:39]} 39. Kxf5 {[%clk 0:00:13]}  R4a6 {[%clk 0:00:39]} 40. g4 {[%clk 0:00:12]}  Ra3 {[%clk 0:00:35]} 41. Qd5 {[%clk 0:00:11]}  Rf3# {[%clk 0:00:35]} 0-1


[Site "https://www.chess.com"]

[Event "Titled Tuesday Blitz November 22 Early 2022"]
[White "Fernandez Garcia, Gumersindo"]
[Black "Koridze, Lile"]
[WhiteFideId "24516740"]
[BlackFideId "13612514"]
[WhiteElo "2140"]
[BlackElo "2050"]
[Result "1-0"]
[Round "04"]
[TimeControl "180+1"]
[Date "2022.11.23"]
[WhiteClock "0:00:24"]
[BlackClock "0:00:22"]

1. d4 {[%clk 0:03:00]}  Nf6 {[%clk 0:02:59]} 2. c4 {[%clk 0:02:53]}  e6 {[%clk 0:02:58]} 3. Nf3 {[%clk 0:02:52]}  d5 {[%clk 0:02:58]} 4. g3 {[%clk 0:02:49]}  Bb4+ {[%clk 0:02:58]} 5. Bd2 {[%clk 0:02:49]}  Be7 {[%clk 0:02:58]} 6. Bg2 {[%clk 0:02:47]}  O-O {[%clk 0:02:58]} 7. O-O {[%clk 0:02:48]}  c6 {[%clk 0:02:58]} 8. Bf4 {[%clk 0:02:46]}  b6 {[%clk 0:02:59]} 9. Qc2 {[%clk 0:02:45]}  Bb7 {[%clk 0:02:59]} 10. Rd1 {[%clk 0:02:40]}  Nbd7 {[%clk 0:02:58]} 11. Nc3 {[%clk 0:02:40]}  Rc8 {[%clk 0:02:57]} 12. e4 {[%clk 0:02:39]}  dxe4 {[%clk 0:02:56]} 13. Nxe4 {[%clk 0:02:40]}  Nxe4 {[%clk 0:02:48]} 14. Qxe4 {[%clk 0:02:41]}  Nf6 {[%clk 0:02:47]} 15. Qc2 {[%clk 0:02:31]}  h6 {[%clk 0:02:42]} 16. c5 {[%clk 0:02:27]}  Nd5 {[%clk 0:02:35]} 17. Ne5 {[%clk 0:02:25]}  bxc5 {[%clk 0:02:21]} 18. dxc5 {[%clk 0:02:23]}  Qa5 {[%clk 0:02:21]} 19. Nd3 {[%clk 0:02:11]}  Ba6 {[%clk 0:02:14]} 20. Bd2 {[%clk 0:02:01]}  Bxd3 {[%clk 0:02:11]} 21. Qxd3 {[%clk 0:01:52]}  Qxc5 {[%clk 0:02:10]} 22. Rac1 {[%clk 0:01:33]}  Qb6 {[%clk 0:02:07]} 23. b3 {[%clk 0:01:30]}  Rfd8 {[%clk 0:02:05]} 24. Qc4 {[%clk 0:01:22]}  c5 {[%clk 0:01:29]} 25. Qg4 {[%clk 0:01:13]}  Kh8 {[%clk 0:01:27]} 26. Qh5 {[%clk 0:01:08]}  Nf6 {[%clk 0:01:21]} 27. Qxf7 {[%clk 0:01:07]}  Bf8 {[%clk 0:01:09]} 28. Bxh6 {[%clk 0:01:03]}  Rxd1+ {[%clk 0:00:59]} 29. Rxd1 {[%clk 0:01:04]}  Rd8 {[%clk 0:00:58]} 30. Rxd8 {[%clk 0:00:59]}  Qxd8 {[%clk 0:00:58]} 31. Bg5 {[%clk 0:00:56]}  e5 {[%clk 0:00:57]} 32. h3 {[%clk 0:00:52]}  a5 {[%clk 0:00:55]} 33. Kh2 {[%clk 0:00:47]}  Bd6 {[%clk 0:00:52]} 34. Bxf6 {[%clk 0:00:42]}  Qxf6 {[%clk 0:00:51]} 35. Qh5+ {[%clk 0:00:40]}  Kg8 {[%clk 0:00:47]} 36. Qe8+ {[%clk 0:00:40]}  Kh7 {[%clk 0:00:46]} 37. Be4+ {[%clk 0:00:40]}  g6 {[%clk 0:00:42]} 38. Qd7+ {[%clk 0:00:39]}  Kh8 {[%clk 0:00:42]} 39. Qe8+ {[%clk 0:00:35]}  Kh7 {[%clk 0:00:39]} 40. Kg2 {[%clk 0:00:36]}  Bf8 {[%clk 0:00:28]} 41. h4 {[%clk 0:00:35]}  Kg7 {[%clk 0:00:28]} 42. h5 {[%clk 0:00:29]}  gxh5 {[%clk 0:00:27]} 43. Qxh5 {[%clk 0:00:30]}  Qh6 {[%clk 0:00:25]} 44. Qg4+ {[%clk 0:00:29]}  Kf6 {[%clk 0:00:23]} 45. Qf5+ {[%clk 0:00:27]}  Ke7 {[%clk 0:00:24]} 46. Qxe5+ {[%clk 0:00:28]}  Qe6 {[%clk 0:00:23]} 47. Qxc5+ {[%clk 0:00:28]}  Kd8 {[%clk 0:00:23]} 48. Qxa5+ {[%clk 0:00:26]}  Ke7 {[%clk 0:00:22]} 49. Qc7+ {[%clk 0:00:26]}  Kf6 {[%clk 0:00:22]} 50. Qf4+ {[%clk 0:00:26]}  Kg7 {[%clk 0:00:22]} 51. Qg5+ {[%clk 0:00:25]}  Kh8 {[%clk 0:00:22]} 52. Qh5+ {[%clk 0:00:25]}  Bh6 {[%clk 0:00:22]} 53. Bf3 {[%clk 0:00:24]}  Kg7 {[%clk 0:00:22]} 54. Qg4+ {[%clk 0:00:24]} 1-0


[Site "https://www.chess.com"]

[Event "Titled Tuesday Blitz November 22 Early 2022"]
[White "Fiol, Fabrice"]
[Black "Berezin, Viktor"]
[WhiteFideId "611670"]
[BlackFideId "14107872"]
[WhiteElo "2446"]
[BlackElo "2310"]
[Result "1-0"]
[Round "04"]
[TimeControl "180+1"]
[Date "2022.11.23"]
[WhiteClock "0:01:29"]
[BlackClock "0:01:22"]

1. e4 {[%clk 0:03:00]}  c6 {[%clk 0:02:56]} 2. Nf3 {[%clk 0:02:55]}  d5 {[%clk 0:02:57]} 3. d3 {[%clk 0:02:55]}  Bg4 {[%clk 0:02:54]} 4. Be2 {[%clk 0:02:55]}  Nf6 {[%clk 0:02:54]} 5. Nbd2 {[%clk 0:02:54]}  e6 {[%clk 0:02:52]} 6. O-O {[%clk 0:02:54]}  Be7 {[%clk 0:02:49]} 7. Ne5 {[%clk 0:02:53]}  Bxe2 {[%clk 0:02:48]} 8. Qxe2 {[%clk 0:02:54]}  Nbd7 {[%clk 0:02:48]} 9. Nxd7 {[%clk 0:02:53]}  Nxd7 {[%clk 0:02:46]} 10. c3 {[%clk 0:02:52]}  Qc7 {[%clk 0:02:46]} 11. a4 {[%clk 0:02:46]}  a6 {[%clk 0:02:44]} 12. d4 {[%clk 0:02:45]}  dxe4 {[%clk 0:02:43]} 13. Nxe4 {[%clk 0:02:45]}  O-O {[%clk 0:02:44]} 14. Be3 {[%clk 0:02:29]}  h6 {[%clk 0:02:30]} 15. Nd2 {[%clk 0:02:27]}  c5 {[%clk 0:02:29]} 16. Qg4 {[%clk 0:02:17]}  Kh8 {[%clk 0:02:23]} 17. Rfe1 {[%clk 0:02:08]}  Nf6 {[%clk 0:02:14]} 18. Qg3 {[%clk 0:02:05]}  Qxg3 {[%clk 0:02:11]} 19. hxg3 {[%clk 0:02:03]}  Nd5 {[%clk 0:02:10]} 20. dxc5 {[%clk 0:02:03]}  Nxe3 {[%clk 0:02:09]} 21. Rxe3 {[%clk 0:02:04]}  Bxc5 {[%clk 0:02:10]} 22. Re2 {[%clk 0:01:58]}  Rfd8 {[%clk 0:02:06]} 23. Kf1 {[%clk 0:01:57]}  Kh7 {[%clk 0:02:05]} 24. g4 {[%clk 0:01:55]}  Kg6 {[%clk 0:02:04]} 25. Ne4 {[%clk 0:01:53]}  Ba7 {[%clk 0:02:04]} 26. Ke1 {[%clk 0:01:50]}  Rd5 {[%clk 0:02:04]} 27. Rd1 {[%clk 0:01:49]}  Rad8 {[%clk 0:02:05]} 28. Rxd5 {[%clk 0:01:49]}  Rxd5 {[%clk 0:02:04]} 29. Rd2 {[%clk 0:01:49]}  Re5 {[%clk 0:01:59]} 30. Re2 {[%clk 0:01:45]}  f5 {[%clk 0:01:56]} 31. gxf5+ {[%clk 0:01:39]}  exf5 {[%clk 0:01:49]} 32. Nd6 {[%clk 0:01:39]}  Rxe2+ {[%clk 0:01:46]} 33. Kxe2 {[%clk 0:01:39]}  Kf6 {[%clk 0:01:33]} 34. Nxb7 {[%clk 0:01:38]}  Ke7 {[%clk 0:01:29]} 35. Na5 {[%clk 0:01:33]}  Kd6 {[%clk 0:01:29]} 36. Nc4+ {[%clk 0:01:34]}  Kd5 {[%clk 0:01:24]} 37. Ne3+ {[%clk 0:01:31]}  Ke4 {[%clk 0:01:23]} 38. f3+ {[%clk 0:01:30]}  Kf4 {[%clk 0:01:23]} 39. Nd5+ {[%clk 0:01:30]}  Ke5 {[%clk 0:01:22]} 40. Nb4 {[%clk 0:01:29]}  a5 {[%clk 0:01:22]} 41. Nc6+ {[%clk 0:01:28]}  Kd6 {[%clk 0:01:22]} 42. Nxa7 {[%clk 0:01:29]} 1-0


[Site "https://www.chess.com"]

[Event "Titled Tuesday Blitz November 22 Early 2022"]
[White "Gedgafov, Chamal"]
[Black "Simonovic, Miroslav"]
[WhiteFideId "34130621"]
[BlackFideId "919152"]
[WhiteElo "2067"]
[BlackElo "2043"]
[Result "0-1"]
[Round "04"]
[TimeControl "180+1"]
[Date "2022.11.23"]
[WhiteClock "0:02:04"]
[BlackClock "0:00:14"]

1. d4 {[%clk 0:02:58]}  Nf6 {[%clk 0:02:59]} 2. Nf3 {[%clk 0:02:58]}  c5 {[%clk 0:03:00]} 3. c3 {[%clk 0:02:57]}  b6 {[%clk 0:03:00]} 4. Bf4 {[%clk 0:02:57]}  Bb7 {[%clk 0:03:00]} 5. e3 {[%clk 0:02:57]}  g6 {[%clk 0:03:00]} 6. h3 {[%clk 0:02:57]}  Bg7 {[%clk 0:03:01]} 7. Be2 {[%clk 0:02:58]}  O-O {[%clk 0:03:02]} 8. O-O {[%clk 0:02:59]}  d6 {[%clk 0:03:02]} 9. a4 {[%clk 0:02:59]}  Nbd7 {[%clk 0:03:02]} 10. Re1 {[%clk 0:02:59]}  Re8 {[%clk 0:03:02]} 11. Bh2 {[%clk 0:03:00]}  e5 {[%clk 0:03:02]} 12. dxe5 {[%clk 0:02:55]}  dxe5 {[%clk 0:03:01]} 13. Nfd2 {[%clk 0:02:54]}  Qe7 {[%clk 0:02:57]} 14. Nc4 {[%clk 0:02:54]}  Bc6 {[%clk 0:02:21]} 15. Qd6 {[%clk 0:02:53]}  Qxd6 {[%clk 0:02:19]} 16. Nxd6 {[%clk 0:02:54]}  Re6 {[%clk 0:02:19]} 17. Nc4 {[%clk 0:02:54]}  Ne4 {[%clk 0:02:11]} 18. Nbd2 {[%clk 0:02:53]}  f5 {[%clk 0:02:03]} 19. Nxe4 {[%clk 0:02:53]}  Bxe4 {[%clk 0:02:04]} 20. Rad1 {[%clk 0:02:52]}  Re7 {[%clk 0:01:48]} 21. Nd6 {[%clk 0:02:51]}  Bc2 {[%clk 0:01:45]} 22. Bc4+ {[%clk 0:02:49]}  Kf8 {[%clk 0:01:43]} 23. Ra1 {[%clk 0:02:49]}  Rd8 {[%clk 0:01:33]} 24. Nb5 {[%clk 0:02:44]}  a6 {[%clk 0:01:28]} 25. Nc7 {[%clk 0:02:44]}  a5 {[%clk 0:01:12]} 26. Ne6+ {[%clk 0:02:43]}  Rxe6 {[%clk 0:01:11]} 27. Bxe6 {[%clk 0:02:43]}  Ke7 {[%clk 0:01:10]} 28. Bc4 {[%clk 0:02:37]}  e4 {[%clk 0:01:08]} 29. Bb5 {[%clk 0:02:29]}  Ne5 {[%clk 0:00:59]} 30. Bxe5 {[%clk 0:02:20]}  Bxe5 {[%clk 0:01:00]} 31. Re2 {[%clk 0:02:20]}  Bd3 {[%clk 0:00:50]} 32. Rd2 {[%clk 0:02:19]}  c4 {[%clk 0:00:43]} 33. Rad1 {[%clk 0:02:19]}  Rc8 {[%clk 0:00:39]} 34. g3 {[%clk 0:02:14]}  Rc5 {[%clk 0:00:27]} 35. Kg2 {[%clk 0:02:14]}  h5 {[%clk 0:00:19]} 36. h4 {[%clk 0:02:13]}  Kf6 {[%clk 0:00:19]} 37. Ra1 {[%clk 0:02:06]}  Kg7 {[%clk 0:00:19]} 38. Rdd1 {[%clk 0:02:07]}  Kf6 {[%clk 0:00:19]} 39. Rdc1 {[%clk 0:02:07]}  Ke6 {[%clk 0:00:18]} 40. Ra3 {[%clk 0:02:07]}  Bd6 {[%clk 0:00:17]} 41. b3 {[%clk 0:02:08]}  Rxb5 {[%clk 0:00:15]} 42. axb5 {[%clk 0:02:04]}  Bxa3 {[%clk 0:00:15]} 43. Rd1 {[%clk 0:02:04]}  cxb3 {[%clk 0:00:14]} 0-1


[Site "https://www.chess.com"]

[Event "Titled Tuesday Blitz November 22 Early 2022"]
[White "Ginzburg, Yakov"]
[Black "Tabatabaei, M. Amin"]
[WhiteFideId "4157176"]
[BlackFideId "12521213"]
[WhiteElo "2305"]
[BlackElo "2557"]
[Result "0-1"]
[Round "04"]
[TimeControl "180+1"]
[Date "2022.11.23"]
[WhiteClock "0:00:02"]
[BlackClock "0:02:05"]

1. d4 {[%clk 0:02:59]}  e6 {[%clk 0:02:59]} 2. Nf3 {[%clk 0:02:58]}  b6 {[%clk 0:02:58]} 3. e4 {[%clk 0:02:53]}  Bb7 {[%clk 0:02:58]} 4. Bd3 {[%clk 0:02:53]}  d5 {[%clk 0:02:59]} 5. Nbd2 {[%clk 0:02:52]}  c5 {[%clk 0:02:57]} 6. c3 {[%clk 0:02:51]}  cxd4 {[%clk 0:02:56]} 7. Nxd4 {[%clk 0:02:42]}  e5 {[%clk 0:02:49]} 8. Bb5+ {[%clk 0:02:40]}  Nd7 {[%clk 0:02:45]} 9. Nc6 {[%clk 0:02:38]}  Qc7 {[%clk 0:02:41]} 10. exd5 {[%clk 0:02:37]}  a6 {[%clk 0:02:42]} 11. Be2 {[%clk 0:02:18]}  Ngf6 {[%clk 0:02:42]} 12. Bf3 {[%clk 0:02:18]}  Bd6 {[%clk 0:02:39]} 13. O-O {[%clk 0:02:17]}  O-O {[%clk 0:02:40]} 14. Re1 {[%clk 0:02:09]}  Nc5 {[%clk 0:02:39]} 15. Nb3 {[%clk 0:02:04]}  e4 {[%clk 0:02:39]} 16. Nxc5 {[%clk 0:01:58]}  Bxh2+ {[%clk 0:02:33]} 17. Kh1 {[%clk 0:01:57]}  bxc5 {[%clk 0:02:34]} 18. Bxe4 {[%clk 0:01:53]}  Nxe4 {[%clk 0:02:33]} 19. Rxe4 {[%clk 0:01:53]}  Bxc6 {[%clk 0:02:33]} 20. dxc6 {[%clk 0:01:52]}  Qxc6 {[%clk 0:02:34]} 21. Rh4 {[%clk 0:01:28]}  Bc7 {[%clk 0:02:34]} 22. Qh5 {[%clk 0:01:18]}  Qg6 {[%clk 0:02:33]} 23. Qxg6 {[%clk 0:01:13]}  hxg6 {[%clk 0:02:31]} 24. Be3 {[%clk 0:01:13]}  Rfb8 {[%clk 0:02:28]} 25. b3 {[%clk 0:01:12]}  Be5 {[%clk 0:02:28]} 26. Rc1 {[%clk 0:01:11]}  Rb5 {[%clk 0:02:24]} 27. Rc4 {[%clk 0:01:10]}  Rc8 {[%clk 0:02:23]} 28. Rd1 {[%clk 0:01:09]}  Bf6 {[%clk 0:02:15]} 29. Rd5 {[%clk 0:01:04]}  Ra5 {[%clk 0:02:15]} 30. a4 {[%clk 0:00:47]}  Rb8 {[%clk 0:02:15]} 31. b4 {[%clk 0:00:45]}  Rxa4 {[%clk 0:02:16]} 32. Rdxc5 {[%clk 0:00:44]}  g5 {[%clk 0:02:14]} 33. g4 {[%clk 0:00:43]}  Kh7 {[%clk 0:02:11]} 34. Kg2 {[%clk 0:00:43]}  Kg6 {[%clk 0:02:10]} 35. Kg3 {[%clk 0:00:36]}  Ra1 {[%clk 0:02:09]} 36. Kg2 {[%clk 0:00:36]}  Rh8 {[%clk 0:02:09]} 37. f3 {[%clk 0:00:21]}  Ra2+ {[%clk 0:02:06]} 38. Bf2 {[%clk 0:00:19]}  Rd8 {[%clk 0:02:06]} 39. Ra5 {[%clk 0:00:13]}  Rc2 {[%clk 0:02:06]} 40. Ra1 {[%clk 0:00:08]}  Rdd2 {[%clk 0:02:06]} 41. Rf1 {[%clk 0:00:08]}  Rxc3 {[%clk 0:02:06]} 42. Rxc3 {[%clk 0:00:06]}  Bxc3 {[%clk 0:02:07]} 43. Kg3 {[%clk 0:00:06]}  Be5+ {[%clk 0:02:08]} 44. Kh3 {[%clk 0:00:06]}  Rb2 {[%clk 0:02:09]} 45. Bg3 {[%clk 0:00:04]}  Bxg3 {[%clk 0:02:09]} 46. Kxg3 {[%clk 0:00:05]}  Rxb4 {[%clk 0:02:10]} 47. Ra1 {[%clk 0:00:05]}  Rb6 {[%clk 0:02:10]} 48. Ra5 {[%clk 0:00:05]}  f6 {[%clk 0:02:11]} 49. f4 {[%clk 0:00:05]}  Kf7 {[%clk 0:02:11]} 50. fxg5 {[%clk 0:00:05]}  fxg5 {[%clk 0:02:05]} 51. Rxg5 {[%clk 0:00:05]}  Rb5 {[%clk 0:02:04]} 52. Rxb5 {[%clk 0:00:01]}  axb5 {[%clk 0:02:05]} 53. Kf4 {[%clk 0:00:02]}  Kf6 {[%clk 0:02:05]} 54. Ke4 {[%clk 0:00:02]}  Kg5 {[%clk 0:02:05]} 0-1


[Site "https://www.chess.com"]

[Event "Titled Tuesday Blitz November 22 Early 2022"]
[White "Goltsev, Dmitry"]
[Black "Xiong, Jeffery"]
[WhiteFideId "24176710"]
[BlackFideId "2047640"]
[WhiteElo "2289"]
[BlackElo "2725"]
[Result "0-1"]
[Round "04"]
[TimeControl "180+1"]
[Date "2022.11.22"]
[WhiteClock "0:00:18"]
[BlackClock "0:00:34"]

1. e4 {[%clk 0:02:59]}  e6 {[%clk 0:03:00]} 2. d4 {[%clk 0:03:00]}  d5 {[%clk 0:03:00]} 3. exd5 {[%clk 0:03:00]}  exd5 {[%clk 0:03:01]} 4. Nf3 {[%clk 0:03:01]}  Bd6 {[%clk 0:03:01]} 5. Bd3 {[%clk 0:03:02]}  Bg4 {[%clk 0:02:55]} 6. h3 {[%clk 0:03:00]}  Bh5 {[%clk 0:02:55]} 7. O-O {[%clk 0:03:00]}  Nc6 {[%clk 0:02:55]} 8. c4 {[%clk 0:02:54]}  dxc4 {[%clk 0:02:40]} 9. Bxc4 {[%clk 0:02:55]}  Nf6 {[%clk 0:02:40]} 10. Re1+ {[%clk 0:02:54]}  Kf8 {[%clk 0:02:24]} 11. Bg5 {[%clk 0:02:47]}  h6 {[%clk 0:02:24]} 12. Bh4 {[%clk 0:02:46]}  g5 {[%clk 0:02:23]} 13. Bg3 {[%clk 0:02:45]}  Bxg3 {[%clk 0:02:24]} 14. fxg3 {[%clk 0:02:46]}  Bxf3 {[%clk 0:02:24]} 15. Qxf3 {[%clk 0:02:45]}  Qxd4+ {[%clk 0:02:24]} 16. Kh2 {[%clk 0:02:45]}  g4 {[%clk 0:02:22]} 17. Qb3 {[%clk 0:02:41]}  gxh3 {[%clk 0:02:20]} 18. Qxb7 {[%clk 0:02:36]}  Qxc4 {[%clk 0:01:38]} 19. Qxa8+ {[%clk 0:02:02]}  Kg7 {[%clk 0:01:38]} 20. Qb7 {[%clk 0:02:00]}  Qd5 {[%clk 0:01:15]} 21. gxh3 {[%clk 0:01:55]}  Rb8 {[%clk 0:01:14]} 22. Qa6 {[%clk 0:01:35]}  Rxb2+ {[%clk 0:00:58]} 23. Re2 {[%clk 0:01:35]}  Nb4 {[%clk 0:00:59]} 24. Qxf6+ {[%clk 0:01:26]}  Kxf6 {[%clk 0:00:59]} 25. Rxb2 {[%clk 0:01:26]}  Qd4 {[%clk 0:00:59]} 26. Nc3 {[%clk 0:01:18]}  Qxc3 {[%clk 0:00:59]} 27. Rf1+ {[%clk 0:01:19]}  Kg6 {[%clk 0:00:55]} 28. Rbf2 {[%clk 0:01:04]}  f6 {[%clk 0:00:55]} 29. h4 {[%clk 0:01:01]}  h5 {[%clk 0:00:55]} 30. Rf3 {[%clk 0:00:58]}  Qe5 {[%clk 0:00:51]} 31. R1f2 {[%clk 0:00:41]}  c5 {[%clk 0:00:48]} 32. Kh3 {[%clk 0:00:39]}  Nd5 {[%clk 0:00:44]} 33. g4 {[%clk 0:00:37]}  Qe6 {[%clk 0:00:42]} 34. Kh2 {[%clk 0:00:31]}  hxg4 {[%clk 0:00:40]} 35. h5+ {[%clk 0:00:31]}  Kxh5 {[%clk 0:00:38]} 36. Rg3 {[%clk 0:00:31]}  f5 {[%clk 0:00:37]} 37. Rd2 {[%clk 0:00:26]}  f4 {[%clk 0:00:36]} 38. Rgd3 {[%clk 0:00:26]}  g3+ {[%clk 0:00:35]} 39. Kg1 {[%clk 0:00:23]}  Qe1+ {[%clk 0:00:33]} 40. Kg2 {[%clk 0:00:18]}  Kg4 {[%clk 0:00:34]} 0-1


[Site "https://www.chess.com"]

[Event "Titled Tuesday Blitz November 22 Early 2022"]
[White "Golubev, Mikhail"]
[Black "Erdogdu, Mert"]
[WhiteFideId "14100983"]
[BlackFideId "6301495"]
[WhiteElo "2374"]
[BlackElo "2413"]
[Result "0-1"]
[Round "04"]
[TimeControl "180+1"]
[Date "2022.11.23"]
[WhiteClock "0:00:01"]
[BlackClock "0:00:17"]

1. e4 {[%clk 0:03:00]}  c5 {[%clk 0:02:55]} 2. Nf3 {[%clk 0:03:00]}  d6 {[%clk 0:02:53]} 3. d4 {[%clk 0:03:00]}  cxd4 {[%clk 0:02:53]} 4. Nxd4 {[%clk 0:03:00]}  Nf6 {[%clk 0:02:53]} 5. Nc3 {[%clk 0:03:00]}  e6 {[%clk 0:02:53]} 6. Bc4 {[%clk 0:02:59]}  Na6 {[%clk 0:02:52]} 7. f4 {[%clk 0:02:40]}  Nc5 {[%clk 0:02:48]} 8. Qf3 {[%clk 0:02:40]}  a6 {[%clk 0:02:38]} 9. Bb3 {[%clk 0:02:35]}  b5 {[%clk 0:02:36]} 10. f5 {[%clk 0:02:34]}  Bd7 {[%clk 0:02:32]} 11. fxe6 {[%clk 0:02:06]}  fxe6 {[%clk 0:02:32]} 12. O-O {[%clk 0:02:06]}  Be7 {[%clk 0:02:31]} 13. e5 {[%clk 0:02:04]}  dxe5 {[%clk 0:02:31]} 14. Nc6 {[%clk 0:02:04]}  Bxc6 {[%clk 0:02:31]} 15. Qxc6+ {[%clk 0:02:04]}  Kf7 {[%clk 0:02:31]} 16. Ne4 {[%clk 0:02:01]}  Qd4+ {[%clk 0:02:20]} 17. Kh1 {[%clk 0:02:00]}  Qxe4 {[%clk 0:01:45]} 18. Bxe6+ {[%clk 0:01:58]}  Kg6 {[%clk 0:01:46]} 19. Bf5+ {[%clk 0:01:58]}  Qxf5 {[%clk 0:01:46]} 20. Rxf5 {[%clk 0:01:59]}  Kxf5 {[%clk 0:01:46]} 21. g4+ {[%clk 0:01:53]}  Kxg4 {[%clk 0:01:36]} 22. Be3 {[%clk 0:01:34]}  Rac8 {[%clk 0:01:31]} 23. Qg2+ {[%clk 0:00:43]}  Kf5 {[%clk 0:01:31]} 24. Rf1+ {[%clk 0:00:41]}  Ke6 {[%clk 0:01:29]} 25. Qxg7 {[%clk 0:00:32]}  Nce4 {[%clk 0:01:11]} 26. c3 {[%clk 0:00:27]}  Rcg8 {[%clk 0:01:06]} 27. Qh6 {[%clk 0:00:27]}  Rg4 {[%clk 0:00:58]} 28. Qh3 {[%clk 0:00:22]}  h5 {[%clk 0:00:55]} 29. Qf3 {[%clk 0:00:21]}  Nd6 {[%clk 0:00:37]} 30. Bc5 {[%clk 0:00:09]}  Rf4 {[%clk 0:00:34]} 31. Qh3+ {[%clk 0:00:09]}  Ng4 {[%clk 0:00:31]} 32. Rxf4 {[%clk 0:00:08]}  exf4 {[%clk 0:00:31]} 33. Kg2 {[%clk 0:00:07]}  Rh6 {[%clk 0:00:26]} 34. Kf1 {[%clk 0:00:06]}  Kd7 {[%clk 0:00:24]} 35. Qd3 {[%clk 0:00:05]}  Rf6 {[%clk 0:00:20]} 36. a4 {[%clk 0:00:03]}  Nxh2+ {[%clk 0:00:17]} 37. Kg2 {[%clk 0:00:03]}  Ng4 {[%clk 0:00:17]} 38. axb5 {[%clk 0:00:02]}  f3+ {[%clk 0:00:17]} 39. Kg3 {[%clk 0:00:01]}  axb5 {[%clk 0:00:17]} 0-1


[Site "https://www.chess.com"]